Cogmind - Beta 15 @@@ ROGUE MODE // 2025.09.22 @ 01:19:51 Player: c4-BRK Result: Destroyed by 37-0WG(R) with Subdweller Machine Gun Performance ------------- Evolutions (0) 0 Regions Visited (3) 600 Robots Destroyed (8) 40 Value Destroyed (138) 138 Prototype IDs (0) 0 Alien Tech Used (0) 0 Bonus (0) 0 TOTAL SCORE: 778 Bonus ------- None Cogmind --------- Core Integrity 0/250 Matter 220/300 Energy 199/200 System Corruption 0% Temperature Cool (6) Movement Core (200) Ox3 Location -10/Subcaves Parts ------- > --- POWER (1) -------- Subdweller Power Source > --- PROPULSION (2) --- (None) > --- UTILITY (2) ------ Small Storage Unit > --- WEAPON (2) ------- Assault Rifle > --- INVENTORY (8) ---- Subdweller Optics Subdweller Shrapnel Launcher Peak State ------------ > --- POWER ------------ Subdweller Power Source > --- PROPULSION ------- Compact Wheel Subdweller Monowheel > --- UTILITY ---------- Small Storage Unit Propulsion Shielding > --- WEAPON ----------- Battle Rifle Slug Cannon > --- INVENTORY -------- Subdweller Optics Assault Rifle Assault Rifle Subdweller Shrapnel Launcher [Rating: 13] Favorites ----------- Power Ion Engine Engine Ion Engine Propulsion Compact Wheel Wheel Compact Wheel Utility Small Storage Unit Storage Small Storage Unit Protection Propulsion Shielding Weapon Assault Rifle Ballistic Gun Assault Rifle Ballistic Cannon Slug Cannon Build | -11 -10 -10 -10 ------- Run | Yrd Mat Min Sub Slots Evolved . | . . . . Power . | . . . . Propulsion . | . . . . Utility . | . . . . Weapon . | . . . . Parts Attached 11 | 6 1 . 4 Power 2 | 1 . . 1 Engine 2 | 1 . . 1 Core . | . . . . Reactor . | . . . . Propulsion 3 | 2 . . 1 Treads . | . . . . Leg . | . . . . Wheel 3 | 2 . . 1 Hover . | . . . . Flight . | . . . . Utility 2 | 1 1 . . Device . | . . . . Storage 1 | 1 . . . Processor . | . . . . Hackware . | . . . . Protection 1 | . 1 . . Artifact . | . . . . Weapon 4 | 2 . . 2 Energy Gun . | . . . . Energy Cannon . | . . . . Ballistic Gun 3 | 2 . . 1 Ballistic Cannon 1 | . . . 1 Launcher . | . . . . Special Weapon . | . . . . Impact Weapon . | . . . . Slashing Weapon . | . . . . Piercing Weapon . | . . . . Special Melee Weapon . | . . . . Unidentified Prototypes . | . . . . Parts Lost 8 | . . . 8 Power 1 | . . . 1 Propulsion 3 | . . . 3 Utility 1 | . . . 1 Weapon 3 | . . . 3 Highest Loss Streak 6 | . . . 6 To Critical Strikes . | . . . . Average Backups . | . . . 2 Power . | . . . . Propulsion . | . . . . Utility . | . . . . Weapon . | . . . 1 Tool/Special . | . . . . Unused Backups 2 | . . . 2 Power . | . . . . Propulsion . | . . . . Utility 1 | . . . 1 Weapon 1 | . . . 1 Tool/Special . | . . . . Average Slot Usage (%) 96 | . 86 100 95 Engine 13 | . 14 14 13 Wheel 27 | . 28 28 26 Storage 14 | . 14 14 14 Protection 11 | . 1 14 13 Ballistic Gun 24 | . 28 28 20 Ballistic Cannon 3 | . . . 7 Peak Build Rating 13 | 6 7 7 13 Average Rating 7 | 4 6 7 10 On Entrance 5 | . 6 7 7 Naked Turns . | . . . . Heaviest Build 20 | 14 15 15 20 Greatest Support 36 | 26 26 26 36 Greatest Overweight (x) . | . . . . Average Overweight (x) . | . . . . Largest Inventory Capacity 8 | 8 8 8 8 Average Capacity 7 | 7 8 8 8 Most Carried 4 | 4 1 . 4 Average Carried . | . . . 2 Final Capacity 8 | 8 8 8 8 Final Carried 2 | . . . 2 Class Distribution -------------------- 100% | Mutant Dominant Class ---------------- Mutant | -10/Materials Mutant | -10/Mines Mutant | -10/Subcaves Resources | -11 -10 -10 -10 ----------- Run | Yrd Mat Min Sub Matter Collected 447 | 222 12 33 180 Remotely . | . . . . Salvage Created 196 | . 65 45 86 Parts 10 | . 4 4 2 Haulers Intercepted 1 | . 1 . . Recyclers Shooed . | . . . . Parts Field Recycled . | . . . . Retrieved Matter . | . . . . Parts Self-Destructed 21 | . . . 21 Prevented . | . . . . Kills | -11 -10 -10 -10 ------- Run | Yrd Mat Min Sub Combat Hostiles Destroyed 6 | . . 4 2 Guns 5 | . . 4 1 Cannons 1 | . . . 1 Classes Destroyed 4 | . 2 1 1 Hauler 1 | . 1 . . Watcher 1 | . 1 . . Swarmer 4 | . . 4 . Subdweller 2 | . . . 2 Best Kill Streak 2 | . 2 2 1 Combat Bots Only 2 | . . 2 1 Max Kills in Single Turn 2 | . 1 2 1 Gunslinging 1 | . . 1 . Exploded . | . . . . Melee . | . . . . Uniques/NPCs Destroyed . | . . . . Combat | -11 -10 -10 -10 -------- Run | Yrd Mat Min Sub Hostile Shots Fired 79 | . . 28 51 Missed 19 | . . 5 14 Hits 60 | . . 23 37 Projectile 60 | . . 23 37 Critical Strikes 1 | . . . 1 Damage Taken 968 | . . 187 781 Core 251 | . . 36 215 Absorbed by Shields . | . . . . Redirected to Shielding 51 | . . 7 44 Core Remaining (%) 100 | 100 . . . Volleys Fired 35 | . 4 10 21 Largest 2 | . 2 2 2 Hottest 65 | . 40 40 65 Shots Fired 68 | . 8 20 40 Gun 57 | . 8 20 29 Cannon 11 | . . . 11 Launcher . | . . . . Special . | . . . . Kinetic 68 | . 8 20 40 Thermal . | . . . . Explosive . | . . . . Electromagnetic . | . . . . Robot Hit Streak 9 | . 3 5 9 Robot Miss Streak 5 | . 4 5 3 Penetration Max . | . . . . Secondary Targets 2 | . . 2 . Max Gunslinging Chain 1 | . . 1 . Shots Hit Robots 45 | . 3 9 33 Core Hits 13 | . 3 4 6 Critical Kills 1 | . . . 1 Critical Parts Destroyed . | . . . . Critical Strikes 2 | . . . 2 Destroy 2 | . . . 2 Melee Attacks . | . . . . Impact . | . . . . Slashing . | . . . . Piercing . | . . . . Sneak Attacks . | . . . . Combat Hostiles . | . . . . Follow-up Attacks . | . . . . Damage Inflicted 654 | . 39 112 503 Guns 479 | . 39 112 328 Cannons 175 | . . . 175 Explosions . | . . . . Melee . | . . . . Ramming . | . . . . Kinetic 654 | . 39 112 503 Thermal . | . . . . Explosive . | . . . . Electromagnetic . | . . . . Impact . | . . . . Slashing . | . . . . Piercing . | . . . . Highest Corruption . | . . . . Average Corruption . | . . . . Corruption Purged . | . . . . Corruption Blocked . | . . . . Overload Shots . | . . . . Overflow Damage . | . . . . Projectiles . | . . . . Explosions . | . . . . Melee . | . . . . Knockbacks 2 | . . . 2 Impact . | . . . . Kinetic 1 | . . . 1 Secondary 1 | . . . 1 Self-Inflicted Damage . | . . . . Shots . | . . . . Rammed . | . . . . Targets Rammed . | . . . . Kicked . | . . . . Crushed . | . . . . Highest Temperature . | . . . . Average Temperature . | . . . . Received Heat Transfer 144 | . . . 144 Siege Activations . | . . . . Martial Activations . | . . . . Shielding Activations . | . . . . Robots Disrupted . | . . . . Combat Hostiles . | . . . . Robots Corrupted . | . . . . Combat Hostiles . | . . . . Parts Fried . | . . . . Impact Corruptions . | . . . . Robots Melted . | . . . . Combat Hostiles . | . . . . Parts Melted . | . . . . Heat Transferred . | . . . . Parts Sabotaged . | . . . . Parts Stolen . | . . . . Parts Stripped . | . . . . Power Chain Reactions . | . . . . Alert | -11 -10 -10 -10 ------- Run | Yrd Mat Min Sub Maximum Alert Level . | . . . . Low Security (%) 100 | 100 100 100 . Level 1 . | . . . . Level 2 . | . . . . Level 3 . | . . . . Level 4 . | . . . . Level 5 . | . . . . High Security . | . . . . Max Security . | . . . . Peak Influence 100 | . 18 100 . Initial . | . . . . Average 31 | . 3 45 . Influence Increases 149 | . 19 130 . Destroy 0b10 Robot/C 80 | . . 80 . Destroy 0b10 Robot/NC 10 | . 10 . . Destroy Leader 24 | . 4 20 . Successful Hack 4 | . 4 . . Destroy Structure 1 | . 1 . . Lose Combat Pursuer 30 | . . 30 . Influence Decreases 149 | . 19 120 10 Entered New Map 6 | . . . 6 Time Decay 143 | . 19 120 4 Squads Dispatched . | . . . . Investigation . | . . . . Extermination . | . . . . Reinforcement . | . . . . Assault . | . . . . Garrison . | . . . . Intercept . | . . . . Searches Triggered . | . . . . Construction Impeded . | . . . . Haulers Reinforced . | . . . . Active Scanning Responses . | . . . . Cargo Convoy Interrupts . | . . . . Stealth | -11 -10 -10 -10 --------- Run | Yrd Mat Min Sub Distress Signals 1 | . . 1 . Communications Jammed . | . . . . Distress Signals . | . . . . Times Spotted 12 | . 1 6 5 Peak Tracking Total 3 | . 1 3 3 Tactical Retreats 2 | . . 2 . Traps | -11 -10 -10 -10 ------- Run | Yrd Mat Min Sub Traps Triggered . | . . . . Indirectly . | . . . . Trap Hack Attempts . | . . . . Triggered . | . . . . Disarmed . | . . . . Reprogrammed . | . . . . Reused . | . . . . Traps Extracted . | . . . . Installed . | . . . . Triggered . | . . . . Machines | -11 -10 -10 -10 ---------- Run | Yrd Mat Min Sub Machines Disabled . | . . . . Max in Single Turn . | . . . . Machines Repaired . | . . . . Machines Dismantled . | . . . . Machines Sabotaged . | . . . . Overloaded Fab Kills . | . . . . Hacking | -11 -10 -10 -10 --------- Run | Yrd Mat Min Sub Machines Accessed 4 | . 2 . 2 Terminals 2 | . 2 . . Fabricators . | . . . . Repair Stations . | . . . . Recycling Units . | . . . . Scanalyzers . | . . . . Garrison Access . | . . . . Total Hacks 8 | . 5 . 3 Successful 5 | . 2 . 3 Failed 3 | . 3 . . Catastrophic . | . . . . Database Lockouts . | . . . . Manual 4 | . 4 . . Terminals 5 | . 5 . . Fabricators . | . . . . Repair Stations . | . . . . Recycling Units . | . . . . Scanalyzers . | . . . . Garrison Access . | . . . . Terminal Hacks 4 | . 1 . 3 Record 1 | . . . 1 Open Door 1 | . . . 1 Locate Traps 1 | . 1 . . Release Object 1 | . . . 1 Fabricator Hacks . | . . . . Repair Station Hacks . | . . . . Recycling Unit Hacks . | . . . . Scanalyzer . | . . . . Garrison Access Hacks . | . . . . Unauthorized Hacks 1 | . 1 . . Terminals 1 | . 1 . . Botnet 1 | . 1 . . Fabricators . | . . . . Repair Stations . | . . . . Recycling Units . | . . . . Scanalyzers . | . . . . Garrison Access . | . . . . Data Cores Recovered . | . . . . Used . | . . . . Hacking Detections 2 | . 2 . . Full Trace Events . | . . . . Feedback Events . | . . . . Feedback Blocked . | . . . . Robot Schematics Acquired . | . . . . Robots Built . | . . . . Authchips . | . . . . Time . | . . . . Total Robot Build Rating . | . . . . Part Schematics Acquired . | . . . . Parts Built . | . . . . Authchips . | . . . . Time . | . . . . Total Part Build Rating . | . . . . Parts Repaired . | . . . . Time . | . . . . Parts Recycled . | . . . . Recycled Matter . | . . . . Retrieved Matter . | . . . . Retrieved Components . | . . . . Parts Scanalyzed . | . . . . Part Schematics Acquired . | . . . . Parts Damaged . | . . . . Bothacking | -11 -10 -10 -10 ------------ Run | Yrd Mat Min Sub Used RIF Installer . | . . . . Robots Hacked . | . . . . Non-combat . | . . . . Combat . | . . . . Robot Hacks Applied . | . . . . Relay Couplers Released . | . . . . Fabnet Peak Effective % . | . . . . Robots Rewired . | . . . . Allies Hacked . | . . . . Hacks Repelled . | . . . . Allies | -11 -10 -10 -10 -------- Run | Yrd Mat Min Sub Total Allies . | . . . . Largest Group . | . . . . Highest-Rated Group . | . . . . Highest-Rated Ally . | . . . . Total Orders . | . . . . Ally Attacks . | . . . . Total Damage . | . . . . Kills . | . . . . Allies Corrupted . | . . . . Allies Melted . | . . . . Intel | -11 -10 -10 -10 ------- Run | Yrd Mat Min Sub Active Infowar (turns) . | . . . . Robot Analysis Total . | . . . . Derelict Logs Recovered 1 | . . 1 . Drone Launches . | . . . . Drone Recoveries . | . . . . Exploration | -11 -10 -10 -10 ------------- Run | Yrd Mat Min Sub Turns Passed 704 | 39 98 287 280 Spaces Moved 444 | 33 94 110 207 Core 6 | 6 . . . Treads . | . . . . Legs . | . . . . Wheels 438 | 27 94 110 207 Hover . | . . . . Flight . | . . . . Fastest Speed 50 | 50 90 90 90 Average Speed 93 | 82 90 90 98 Slowest Speed 105 | 90 90 90 105 Overloaded Moves . | . . . . Propulsion Burnouts . | . . . . Robots Hopped . | . . . . Potential Cave-ins . | . . . . Cave-ins Triggered . | . . . . Exploration Rate (%) 20 | 3 26 40 13 Regions Visited 3 Branch Regions 2 Pre-discovered Areas . | . . . . Known Exits Taken . | . . . . Unknown Exits Taken 3 | 1 1 1 . Scrap Searched 4 | . . . 4 Spaces Dug . | . . . . Terrain Destroyed 3 | . . . 3 Melee . | . . . . Projectile 3 | . . . 3 AOE . | . . . . Terrain Rammed . | . . . . Walls Destroyed . | . . . . Machines Disabled . | . . . . Actions | -11 -10 -10 -10 --------- Run | Yrd Mat Min Sub Total 664 | 44 99 277 244 Wait 162 | . . 158 4 Move 441 | 32 93 109 207 Hop . | . . . . Pick Up 13 | 6 1 . 6 Fast Attach . | . . . . Attach 11 | 6 1 . 4 Detach . | . . . . Swap 2 | . . . 2 Drop . | . . . . Fire 35 | . 4 10 21 Melee . | . . . . Ram . | . . . . Kick . | . . . . Crush . | . . . . Escape Stasis . | . . . . Rewire . | . . . . Trap . | . . . . Miscellaneous . | . . . . Route ------- -11/Scrapyard -10/Materials -10/Mines (discovered 2 exits: [*Mat] / *Sub) -10/Subcaves (discovered 1 exit: [*Mat]) History --------- Turn | Location | Event 4 | -11/Scrapyard | Discovered new exit (range 16) 40 | -11/Scrapyard | Entered Materials 98 | -10/Materials | Discovered new exit (range 16) 138 | -10/Materials | Entered Mines 144 | -10/Mines | Assembled infested the area 232 | -10/Mines | Learned Materials security intel 232 | -10/Mines | Discovered new exit (range 10) 317 | -10/Mines | Build established: Mutant 421 | -10/Mines | Discovered new exit (range 5) 425 | -10/Mines | Entered Subcaves 500 | -10/Subcaves | Disturbed a concealed Subdweller 643 | -10/Subcaves | Discovered new exit (range 8) 645 | -10/Subcaves | A Subdweller sparked back to life 645 | -10/Subcaves | A Subdweller sparked back to life 645 | -10/Subcaves | A Subdweller sparked back to life 690 | -10/Subcaves | Core integrity fell below 50% 698 | -10/Subcaves | Core integrity fell below 20% 705 | -10/Subcaves | Destroyed by 37-0WG(R) with Subdweller Machine Gun Last Messages --------------- 63-4QL(R) creaks and sparks as it begins to move. 37-0WG(R) creaks and sparks as it begins to move. GX-9KA(R) creaks and sparks as it begins to move. GX-9KA(R) suffers critical hit (Destroy). Acquired 5 matter. GX-9KA(R) suffers critical hit (Destroy). GX-9KA(R) destroyed. Acquired 22 matter. 37-0WG(R) knocked back. 37-0WG(R) affixes Scrap Shield Fragment to Scrap Shield. Propulsion Shielding destroyed. Sub. Monowheel destroyed. Battle Rifle destroyed. Slug Cannon destroyed. Com. Wheel destroyed. Assault Rifle destroyed. Map ----- +----------------------------------------------------+ | ?????????????????????? #?###?????????????????????? | | ?????????????????????? ## ?????????????????????? | | ?????????????????????? ??????????????????????? | | ?????????????#####??? ???????????????????????? | | ????????????##^ ^##?? #???????????????????????? | | ??????????### #?# #???????????????????????? | | ???????#### #?# #???????????????????????? | | ??###### #? #???????????????????????? | | ?## #? #????????????????????????? | | ## ### ### ##???????????????????????? | | ###### # ##??????????????????????? | | #### #??????????????????????? | | #### ## #??????????????????????? | | ### ## ### ### #??????????????????????? | | ## ####?###????? #??????????????????????? | | # #???????????????????????????????????? | | ### ####???????????????"????#???????????? | | ##?## #??????????????"""? #???????????? | | #???## #?????????????"""" #???????????? | | #???# ##????????????? "" ?????????????? | | "#???# # #???????????? ###????????????? | | "##?# #" ##??????????? ; ##???????????? | | ###?# ##" ##?????????? " ???????????? | | ?### ### #?????????# ""???????????? | | " ??## ########### % #????????????? | | "" ??# &% ## ##@R #???????????????? | | """" ??# #% "" ; % ##???????????????? | | ? """" ??####### % # #????????????????? | | ?? """" ????????## R##; #????????????????? | | ???? """?????????#" <#?? ##????????????????? | | ???##???"????????#"" < #???? R#?????????????????? | | ##" ## ??????????#" < ##????? ;#????????????????? | | "" ??????????## """#????? #????????????????? | | "" ???????????####"# ????? ????????????????? | | "# #????????????????### #????? ???????????????? | | "#??????????????????????? #?????? ??????????????? | | ##???????????????????????? ?????? ?????????????? | | ???????????????????????????"?????? ??????????????? | | ?????????????????????????????????????????????????? | | ?????????????????????????????????????????????????? | | ?????????????????????????????????????????????????? | | ?????????????????????????????????????????????????? | | ?????????????????????????????????????????????????? | | ?????????????????????????????????????????????????? | | ?????????????????????????????????????????????????? | | ?????????????????????????????????????????????????? | | ?????????????????????????????????????????????????? | | ?????????????????????????????????????????????????? | | ?????????????????????????????????????????????????? | | ?????????????????????????????????????????????????? | +----------------------------------------------------+ Best States ------------- Heat Dissipation 25 Energy Generation 15 Energy Capacity 250 Matter Stores 300 Matter Capacity 300 Sight Range 16 Terrain Scan Density 10 Propulsion Shielding 33 Evasion (%) 42 Item Schematics ----------------- None Robot Schematics ------------------ None Fabricated ------------ Nothing Repaired ---------- Nothing Alien Tech Used ----------------- None Achievements -------------- None Challenges ------------ None Game ------ Seed ChipWeldingCanceller Manual? 0 Play Time 00:07:40 Cumulative 28.4 hours Start 2025.09.22 @ 01:13:18 End 2025.09.22 @ 01:19:51 Sessions 1 Manual Loads 0 Difficulty Rogue Special Mode None Game No. 49 Rogue 28 Adventurer 21 Explorer 0 Win Type - Total 1 Types 0/0/0/0/0/0/0/1/0/0 Lore% 51 Gallery% 33 Achievement% 38 Wizard Run 0 Options --------- Layout 1 ASCII 0 Keyboard 0 Movement Mouse Keybinds 0 Fullscreen 2 Font 24/Smallcaps Map View 50x35 Zoom Use 0% Tactical HUD 0 Map Filters NONE Filters NONE Steam 1 RUN: dccb0d49-7c4a-4f90-8777-5c57acfb809a